bitfinex/quotes_SOLUSD_20220307
["timestamp","ask_amount","ask_price","bid_price","bid_amount"]
[1646682761338,0.25,80.323,80.261,0.25]
[1646682761541,0.25,80.323,80.26,14.43]
[1646682761739,6.227,80.322,80.26,14.43]
[1646682761945,0.25,80.321,80.26,14.43]
[1646682762140,6.227,80.32,80.26,14.43]
[1646682762339,0.25,80.319,80.261,0.25]
[1646682762542,6.227,80.335,80.261,45.82305125]
[1646682762743,6.0,80.334,80.261,45.82305125]
[1646682763139,6.226,80.333,80.261,45.82305125]
[1646682763540,100.0,80.341,80.261,45.82305125]
[1646682763741,6.476,80.34,80.261,45.82305125]
[1646682764141,120.9,80.339,80.261,45.82305125]
[1646682764346,120.9,80.337,80.261,45.82305125]
[1646682764645,6.476,80.338,80.261,45.82305125]
[1646682764646,100.0,80.334,80.261,45.82305125]
[1646682764847,6.476,80.333,80.26,14.43]
[1646682765046,126.9,80.332,80.258,24.2548]
[1646682765350,18.695,80.33,80.258,24.2548]
[1646682765646,12.477,80.329,80.258,24.2548]
[1646682765848,12.477,80.329,80.259,40.94412331]
[1646682766253,4.76888263,80.341,80.259,40.94412331]
[1646682766254,6.227,80.34,80.26,0.25]
[1646682766451,7.0,80.326,80.26,18.9367]
[1646682767548,6.227,80.325,80.261,120.9]
[1646682767747,6.227,80.325,80.262,0.25]
[1646682767949,65.56094479,80.38,80.262,0.25]
[1646682767950,7.0,80.343,80.262,1.73884017]
[1646682768147,12.226,80.342,80.262,0.25]
[1646682768348,6.226,80.342,80.263,1.48884017]
[1646682768547,6.226,80.342,80.27,18.6845]
[1646682768747,7.0,80.343,80.271,121.15]
[1646682768948,7.0,80.343,80.273,120.9]
[1646682769148,7.0,80.343,80.274,0.25]
[1646682769549,7.0,80.343,80.274,1.73884017]
[1646682769748,6.225,80.363,80.275,1.48884017]
[1646682769948,0.25,80.362,80.293,120.9]
[1646682770250,6.224,80.361,80.293,120.9]
[1646682770667,6.224,80.372,80.294,0.25]
[1646682771464,7.0,80.371,80.294,0.25]
[1646682771864,6.25,80.37,80.293,6.25]
[1646682772365,6.0,80.369,80.293,6.0]
[1646682772576,7.0,80.363,80.29,14.43]
[1646682772767,6.25,80.362,80.241,46.5103]
[1646682772969,6.25,80.362,80.27,14.43]
[1646682773367,6.224,80.361,80.27,14.43]
[1646682773567,6.25,80.36,80.272,35.32694902]
[1646682773766,6.224,80.359,80.272,35.32694902]
[1646682773966,100.0,80.356,80.272,35.32694902]
[1646682774169,7.0,80.343,80.272,35.32694902]
[1646682774468,6.25,80.342,80.272,35.32694902]
[1646682774667,6.226,80.341,80.272,35.32694902]
[1646682774866,6.25,80.34,80.272,35.32694902]
[1646682775066,6.226,80.339,80.272,35.32694902]
[1646682775265,6.25,80.338,80.272,35.32694902]
[1646682775467,6.226,80.337,80.272,35.32694902]
[1646682775669,6.25,80.336,80.272,35.32694902]
[1646682776068,0.25,80.336,80.272,35.32694902]
[1646682776866,0.25,80.348,80.272,35.32694902]
[1646682778075,7.25,80.348,80.272,35.32694902]
[1646682778273,12.224,80.347,80.272,35.32694902]
[1646682778468,0.25,80.346,80.272,35.32694902]
[1646682778670,6.224,80.345,80.273,120.9]
[1646682778970,0.25,80.344,80.28,18.6843]
[1646682779175,0.25,80.346,80.281,0.25]
[1646682779376,6.224,80.35,80.281,0.25]
[1646682779674,120.9,80.382,80.281,0.25]
[1646682779874,7.0,80.361,80.281,0.25]
[1646682780178,12.224,80.36,80.281,0.25]
[1646682780781,0.25,80.359,80.281,0.25]
[1646682780976,6.224,80.358,80.281,0.25]
[1646682781182,0.25,80.357,80.291,39.29701667]
[1646682781385,6.224,80.356,80.291,39.29701667]
[1646682781579,0.25,80.355,80.291,39.29701667]
[1646682781777,6.224,80.354,80.291,39.29701667]
[1646682781979,0.25,80.353,80.291,39.29701667]
[1646682782178,0.25,80.353,80.281,0.25]
[1646682782379,6.25,80.353,80.281,0.25]
[1646682782980,6.224,80.352,80.281,0.25]
[1646682783180,6.25,80.351,80.281,38.64238859]
[1646682783383,6.224,80.35,80.281,38.64238859]
[1646682783579,6.25,80.349,80.281,38.64238859]
[1646682783780,6.25,80.349,80.29,18.6835]
[1646682784179,0.25,80.349,80.29,18.6835]
[1646682784381,7.0,80.358,80.291,121.15]
[1646682784579,6.225,80.363,80.291,121.15]
[1646682784580,6.225,80.363,80.291,122.63884017]
[1646682784779,6.224,80.37,80.291,122.63884017]
[1646682784980,6.224,80.37,80.292,1.48884017]
[1646682785180,6.224,80.377,80.293,0.25]
[1646682785582,6.224,80.377,80.31,18.6757]
[1646682785788,6.224,80.377,80.311,47.31489684]
[1646682785995,6.224,80.377,80.312,121.48461902]
[1646682786190,6.223,80.402,80.313,0.25]
[1646682786590,7.0,80.401,80.321,120.9]
[1646682786794,7.0,80.401,80.323,0.53148893]
[1646682786990,7.0,80.401,80.322,0.25]
[1646682787391,7.0,80.401,80.326,120.9]
[1646682787692,7.0,80.401,80.325,44.7410995]
[1646682787693,6.221,80.414,80.341,120.9]
[1646682787897,6.22,80.419,80.343,120.9]
[1646682788191,6.22,80.432,80.344,0.25]
[1646682788390,6.0,80.431,80.344,0.25]
[1646682788593,6.219,80.43,80.344,0.25]
[1646682788793,6.0,80.429,80.344,0.25]
[1646682788994,6.219,80.428,80.344,0.25]
[1646682789195,0.25,80.427,80.351,120.9]
[1646682789418,6.219,80.426,80.352,0.25]
[1646682789618,0.25,80.425,80.352,0.25]
[1646682789818,6.219,80.424,80.352,0.25]
[1646682790021,0.25,80.423,80.353,120.9]
[1646682790225,0.25,80.423,80.37,18.6646]
[1646682790420,0.25,80.423,80.37,62.79174941]
[1646682790622,525.27557443,80.433,80.37,62.79174941]
[1646682791020,6.218,80.432,80.37,62.79174941]
[1646682791223,6.218,80.432,80.371,0.25]
[1646682791422,6.218,80.432,80.38,18.6636]
[1646682792121,525.27557443,80.433,80.38,18.6636]
[1646682792321,6.218,80.442,80.38,18.6636]
[1646682792621,6.0,80.441,80.381,0.78254846]
[1646682792825,7.0,80.443,80.39,18.6609]
[1646682793023,7.0,80.443,80.391,41.64583386]
[1646682793227,7.0,80.443,80.391,40.8632854]
[1646682793436,6.217,80.471,80.391,40.8632854]
[1646682793623,6.75765576,80.47,80.391,40.8632854]
[1646682793829,6.216,80.469,80.391,40.8632854]
[1646682794028,100.0,80.466,80.391,40.8632854]
[1646682794229,12.216,80.465,80.391,40.8632854]
[1646682794528,7.0,80.456,80.391,40.8632854]
[1646682794729,120.9,80.454,80.36,14.43]
[1646682794925,12.468,80.453,80.361,0.25]
[1646682795128,120.9,80.449,80.36,33.0983]
[1646682795325,100.0,80.461,80.36,33.0983]
[1646682795326,120.9,80.447,80.36,14.43]
[1646682795525,12.468,80.448,80.34,37.888]
[1646682795526,7.0,80.421,80.34,37.888]
[1646682795731,6.22,80.421,80.342,95.0]
[1646682796139,4.12583653,80.472,80.361,120.9]
[1646682796344,3.27004479,80.484,80.371,120.9]
[1646682796531,6.216,80.481,80.371,120.9]
[1646682796741,120.9,80.48,80.38,62.1844]
[1646682796935,120.9,80.478,80.39,14.43]
[1646682797138,120.9,80.476,80.39,14.43]
[1646682797330,6.22,80.458,80.39,14.43]
[1646682797530,6.216,80.457,80.39,14.43]
[1646682797731,6.216,80.457,80.37,14.43]
[1646682797732,4.79973434,80.455,80.37,14.43]
[1646682797934,120.9,80.453,80.36,14.43]
[1646682798129,120.9,80.451,80.36,14.43]
[1646682798333,120.9,80.439,80.37,18.6665]
[1646682798530,6.468,80.438,80.37,18.6665]
[1646682798731,120.9,80.437,80.37,18.6665]
[1646682798934,120.9,80.435,80.343,47.5163]
[1646682799134,0.25,80.438,80.343,47.5163]
[1646682799135,120.9,80.433,80.343,47.5163]
[1646682799331,0.25,80.432,80.343,47.5163]
[1646682799533,139.5681,80.43,80.35,18.6708]
[1646682799733,0.25,80.429,80.35,18.6708]
[1646682799933,0.25,80.429,80.351,37.46167196]
[1646682800533,121.15,80.429,80.351,37.46167196]
[1646682800734,18.6704,80.42,80.351,37.46167196]
[1646682800932,0.25,80.419,80.351,37.46167196]
[1646682801133,6.22,80.428,80.352,6.0]
[1646682801335,0.25,80.427,80.352,6.0]
[1646682801635,0.25,80.427,80.351,37.46167196]
[1646682801832,0.25,80.427,80.36,18.6688]
[1646682802239,0.25,80.428,80.36,18.6688]
[1646682802435,6.219,80.427,80.36,18.6688]
[1646682802633,0.25,80.426,80.36,18.6688]
[1646682802833,6.219,80.425,80.36,18.6688]
[1646682803034,0.25,80.424,80.36,18.6688]
[1646682803234,6.219,80.423,80.36,18.6688]
[1646682803433,0.25,80.422,80.36,18.6688]
[1646682803634,6.219,80.421,80.36,18.6688]
[1646682803834,0.25,80.42,80.36,18.6688]
[1646682804032,6.219,80.419,80.36,18.6688]
[1646682804236,0.25,80.418,80.36,18.6688]
[1646682804434,6.219,80.417,80.36,18.6688]
[1646682804634,0.25,80.416,80.36,18.6688]
[1646682804843,0.25,80.418,80.36,18.6688]
[1646682805236,0.25,80.418,80.32,62.2406]
[1646682805437,5.47479617,80.415,80.32,14.43]
[1646682805638,6.22,80.393,80.32,14.43]
[1646682805836,6.472,80.392,80.31,23.4184]
[1646682806046,120.9,80.391,80.31,23.4184]
[1646682806239,120.9,80.389,80.31,64.00688578]
[1646682806438,120.9,80.379,80.31,64.00688578]
[1646682806636,120.9,80.377,80.31,23.4184]
[1646682806839,120.9,80.375,80.31,23.4184]
[1646682807039,120.9,80.355,80.31,23.4184]
[1646682807239,0.25,80.354,80.254,120.9]
[1646682807440,6.226,80.353,80.27,14.43]
[1646682807641,0.25,80.352,80.271,52.01390318]
[1646682807840,18.6904,80.35,80.271,52.01390318]
[1646682808038,0.25,80.349,80.271,52.01390318]
[1646682808238,0.25,80.349,80.272,0.25]
[1646682808438,0.25,80.349,80.272,121.15]
[1646682808643,6.22,80.348,80.273,0.56563768]
[1646682808840,6.224,80.393,80.273,0.56563768]
[1646682808841,0.25,80.347,80.281,120.9]
[1646682809137,0.25,80.347,80.284,42.33891821]
[1646682809343,0.25,80.347,80.285,6.0]
[1646682809838,6.225,80.346,80.285,6.0]
[1646682810037,0.25,80.345,80.285,6.0]
[1646682811144,6.224,80.344,80.29,18.6856]
[1646682811349,0.25,80.343,80.29,18.6856]
[1646682812340,0.25,80.358,80.29,18.6856]
[1646682812541,6.224,80.357,80.29,18.6856]
[1646682812740,0.25,80.356,80.291,6.0]
[1646682812942,6.224,80.355,80.3,18.6817]
[1646682813244,3.27004479,80.409,80.301,46.41677809]
[1646682813443,6.22,80.386,80.302,121.7068393]
[1646682813646,12.99225985,80.396,80.303,0.25]
[1646682813844,6.222,80.395,80.304,0.5113421]
[1646682814043,18.6772,80.39,80.32,18.6776]
[1646682814246,6.222,80.389,80.321,38.65607532]
[1646682814844,0.25,80.388,80.321,38.65607532]
[1646682815047,0.25,80.395,80.33,18.676]
[1646682815251,6.0,80.395,80.33,18.676]
[1646682815746,12.99225985,80.396,80.33,18.676]
[1646682816150,19.99225985,80.396,80.33,18.676]
[1646682816350,6.221,80.395,80.33,18.676]
[1646682816548,6.221,80.395,80.331,120.9]
[1646682816749,6.221,80.409,80.34,18.6728]
[1646682816952,6.0,80.408,80.341,44.46498778]
[1646682817151,6.22,80.407,80.342,120.9]
[1646682817351,6.22,80.407,80.343,0.25]
[1646682817650,7.0,80.413,80.343,0.25]
[1646682817950,6.22,80.435,80.351,120.9]
[1646682818154,5.39821844,80.482,80.35,18.6721]
[1646682818155,6.219,80.449,80.361,120.9]
[1646682818349,18.6607,80.45,80.363,120.9]
[1646682818549,6.219,80.449,80.365,120.9]
[1646682818750,6.219,80.449,80.367,120.9]
[1646682818950,6.219,80.449,80.371,120.9]
[1646682819150,6.219,80.449,80.373,120.9]
[1646682819350,6.219,80.449,80.375,120.9]
[1646682819554,6.219,80.449,80.377,120.9]
[1646682819751,6.219,80.449,80.381,120.9]
[1646682819954,6.219,80.449,80.38,14.43]
[1646682819955,18.6607,80.45,80.383,120.9]
[1646682820151,18.6607,80.45,80.384,6.25]
[1646682820552,0.25,80.449,80.384,6.0]
[1646682820752,0.25,80.449,80.385,0.25]
[1646682821753,0.25,80.449,80.383,0.25]
[1646682821955,0.25,80.449,80.384,0.69366408]
[1646682822256,0.25,80.457,80.383,0.25]
[1646682822453,6.216,80.456,80.383,0.25]
[1646682822656,0.25,80.455,80.383,0.25]
[1646682822855,6.216,80.454,80.382,0.25]
[1646682823074,120.9,80.449,80.38,14.43]
[1646682823274,120.9,80.447,80.36,14.43]
[1646682823472,5.05430494,80.444,80.35,14.43]
[1646682823676,120.9,80.442,80.35,14.43]
[1646682823873,12.469,80.441,80.351,38.03978137]
[1646682824075,7.0,80.421,80.351,38.03978137]
[1646682824277,6.469,80.42,80.351,38.03978137]
[1646682824575,6.469,80.42,80.352,0.25]
[1646682824777,126.9,80.419,80.334,1.48884017]
[1646682824975,18.6746,80.4,80.33,14.43]
[1646682825275,0.25,80.399,80.33,14.43]
[1646682825576,6.221,80.409,80.317,18.9748]
[1646682825776,6.22,80.44,80.345,163.32580716]
[1646682825976,6.0,80.439,80.346,0.54488759]
[1646682826180,6.219,80.438,80.346,0.25]
[1646682826380,6.0,80.437,80.346,0.25]
[1646682826580,18.6678,80.42,80.345,42.42580716]
[1646682826775,18.6678,80.42,80.346,120.9]
[1646682827175,0.25,80.419,80.347,0.25]
[1646682827576,18.67,80.41,80.345,42.42580716]
[1646682827777,0.25,80.409,80.345,42.42580716]
[1646682827977,0.25,80.409,80.344,76.71904017]
[1646682827978,0.25,80.409,80.344,75.2302]
[1646682828178,6.22,80.408,80.344,75.2302]
[1646682828378,120.9,80.406,80.344,75.2302]
[1646682828577,120.9,80.404,80.327,23.27]
[1646682828778,120.9,80.388,80.327,23.27]
[1646682828982,7.0,80.381,80.327,23.27]
[1646682829180,12.472,80.38,80.327,23.27]
[1646682829382,120.9,80.379,80.29,14.43]
[1646682829580,120.9,80.377,80.28,14.43]
[1646682829779,120.9,80.375,80.28,14.43]
[1646682829983,18.6809,80.37,80.281,122.38884017]
[1646682830183,12.474,80.369,80.282,45.61570937]
[1646682830384,12.474,80.369,80.282,47.10454954]
[1646682830583,7.0,80.351,80.266,1.48884017]
[1646682830782,5.94296038,80.349,80.266,1.48884017]
[1646682830990,120.9,80.329,80.252,48.5878]
[1646682831185,12.477,80.328,80.252,48.5878]
[1646682831584,12.477,80.328,80.253,43.22708203]
[1646682831985,18.6958,80.31,80.253,43.22708203]
[1646682832187,6.478,80.309,80.253,43.22708203]
[1646682832387,0.25,80.309,80.253,43.22708203]
[1646682833187,6.25,80.319,80.253,43.22708203]
[1646682833386,13.227,80.318,80.253,43.22708203]
[1646682833792,0.25,80.317,80.254,0.25]
[1646682833990,120.9,80.345,80.254,0.25]
[1646682834191,12.99255869,80.327,80.26,18.6888]
[1646682834400,100.0,80.354,80.261,121.15]
[1646682834401,6.227,80.353,80.261,121.15]
[1646682834590,6.0,80.352,80.261,121.15]
[1646682834793,6.226,80.351,80.261,121.15]
[1646682834991,6.226,80.351,80.262,6.0]
[1646682835199,126.9,80.35,80.26,14.43]
[1646682835394,12.226,80.349,80.26,14.43]
[1646682835592,120.9,80.348,80.26,14.43]
[1646682835796,120.9,80.339,80.239,48.6666]
[1646682835996,62.311,80.34,80.239,48.6666]
[1646682835997,126.37130549,80.337,80.239,48.6666]
[1646682836196,120.9,80.33,80.22,14.43]
[1646682836393,120.9,80.33,80.148,4.07275425]
[1646682836394,126.6103219,80.328,80.16,280.4]
[1646682836594,120.9,80.326,80.2,14.43]
[1646682836793,62.3515,80.31,80.21,46.93381954]
[1646682836994,133.379,80.309,80.21,46.93381954]
[1646682837193,236.21513526,80.309,80.21,46.93381954]
[1646682837596,120.9,80.299,80.21,46.93381954]
[1646682837797,7.0,80.296,80.21,46.93381954]
[1646682838094,62.3474,80.29,80.21,46.93381954]
[1646682838393,12.48,80.289,80.21,46.93381954]
[1646682838995,7.0,80.283,80.21,46.93381954]
[1646682839195,18.7042,80.28,80.2,33.1338]
[1646682839396,6.48,80.279,80.2,33.1338]
[1646682840196,6.48,80.279,80.21,35.73744738]
[1646682841002,0.25,80.279,80.21,68.86824738]
[1646682841303,6.23,80.278,80.211,1.48884017]
[1646682841504,0.25,80.277,80.211,1.48884017]
[1646682841696,6.23,80.276,80.211,1.48884017]
[1646682841896,18.7041,80.27,80.211,1.48884017]
[1646682842097,0.25,80.269,80.211,1.48884017]
[1646682842901,18.7065,80.26,80.193,1.48884017]
[1646682843105,12.482,80.259,80.191,1.0]
[1646682843899,12.482,80.259,80.192,37.43484325]
[1646682844100,18.7096,80.25,80.192,37.43484325]
[1646682844304,6.482,80.249,80.192,37.43484325]
[1646682844903,6.232,80.249,80.193,122.38884017]
[1646682845102,7.0,80.271,80.194,7.00337405]
[1646682845301,7.0,80.271,80.194,8.24221422]
[1646682845505,7.0,80.271,80.195,1.48884017]
[1646682845703,7.0,80.271,80.196,6.0]
[1646682845903,7.0,80.271,80.201,120.9]
[1646682846103,6.231,80.302,80.203,120.9]
[1646682846305,6.231,80.302,80.205,120.9]
[1646682846503,6.23,80.323,80.211,120.9]
[1646682846708,7.0,80.301,80.221,120.9]
[1646682846907,7.0,80.301,80.223,120.9]
[1646682847105,6.229,80.308,80.24,18.6952]
[1646682847305,120.9,80.328,80.241,40.1302548]
[1646682847504,12.227,80.327,80.241,40.1302548]
[1646682847704,6.227,80.327,80.241,41.61909497]
[1646682847905,6.227,80.329,80.242,122.38884017]
[1646682848116,7.0,80.318,80.25,18.6934]
[1646682848308,6.227,80.317,80.25,18.6934]
[1646682848507,6.227,80.317,80.251,1.48884017]
[1646682848908,6.227,80.317,80.252,0.61949891]
[1646682849327,6.227,80.319,80.252,0.61949891]
[1646682849733,6.227,80.319,80.25,18.6934]
[1646682850328,0.25,80.318,80.25,18.6934]
[1646682850528,18.6948,80.31,80.25,18.6934]
[1646682850733,127.15,80.309,80.241,40.1302548]
[1646682850930,120.9,80.307,80.241,40.1302548]
[1646682851130,12.478,80.306,80.241,40.1302548]
[1646682851329,6.25,80.305,80.241,40.1302548]
[1646682851529,6.228,80.304,80.241,40.1302548]
[1646682851729,6.25,80.303,80.241,40.1302548]
[1646682852028,6.228,80.302,80.241,40.1302548]
[1646682852232,6.25,80.301,80.241,40.1302548]
[1646682852630,0.25,80.301,80.241,40.1302548]
[1646682852830,18.6974,80.3,80.241,40.1302548]
[1646682853029,6.228,80.318,80.241,40.1302548]
[1646682853232,6.228,80.318,80.243,0.67575956]
[1646682853430,6.228,80.335,80.243,0.25]
[1646682853631,12.9916566,80.332,80.243,0.25]
[1646682853830,6.227,80.331,80.243,0.25]
[1646682854035,18.6923,80.32,80.25,18.6938]
[1646682854232,18.6923,80.32,80.251,0.25]
[1646682854632,6.227,80.319,80.251,0.25]
[1646682855033,7.0,80.326,80.252,1.48884017]
[1646682855237,6.227,80.346,80.261,120.9]
[1646682855434,7.0,80.338,80.263,120.9]
[1646682855835,6.226,80.337,80.263,120.9]
[1646682856038,7.0,80.338,80.264,1.48884017]
[1646682856238,6.226,80.337,80.28,18.6862]
[1646682856436,6.226,80.337,80.271,120.9]
[1646682856437,6.224,80.345,80.281,47.59367591]
[1646682856638,6.224,80.359,80.282,0.6484476]
[1646682856936,106.224,80.359,80.282,120.9]
[1646682857138,7.0,80.351,80.282,120.9]
[1646682857334,6.224,80.35,80.29,18.6842]
[1646682857534,18.6829,80.36,80.291,0.25]
[1646682857736,6.224,80.379,80.291,1.73884017]
[1646682858034,6.0,80.378,80.292,1.48884017]
[1646682858234,7.0,80.373,80.292,1.48884017]
[1646682858437,6.224,80.372,80.292,1.48884017]
[1646682858635,106.224,80.379,80.292,1.48884017]
[1646682859034,106.224,80.379,80.293,0.65521382]
[1646682859235,100.0,80.379,80.301,120.9]
[1646682859434,112.2,80.387,80.302,0.90521382]
[1646682859635,6.223,80.386,80.304,0.7233279]
[1646682859835,6.223,80.395,80.306,0.7233279]
[1646682860034,7.0,80.396,80.311,120.9]
[1646682860237,7.0,80.396,80.314,0.7233279]
[1646682860535,6.222,80.413,80.323,120.9]
[1646682860745,112.2,80.418,80.331,120.9]
[1646682860934,1.58451369,80.412,80.333,120.9]
[1646682861138,1.58451369,80.412,80.335,120.9]
[1646682861335,6.22,80.411,80.337,163.9039919]
[1646682861538,6.22,80.414,80.341,120.9]
[1646682861734,1.58451369,80.413,80.361,120.9]
[1646682861936,1.08451369,80.435,80.363,120.9]
[1646682862135,6.75918624,80.456,80.363,0.52893822]
[1646682862335,6.218,80.455,80.362,41.63441955]
[1646682862735,6.75953097,80.454,80.362,41.63441955]
[1646682863036,6.75953097,80.454,80.362,162.53441955]
[1646682863236,7.0,80.443,80.363,1.48884017]
[1646682864238,6.218,80.442,80.364,0.25]
[1646682864436,18.6658,80.44,80.363,1.48884017]
[1646682864637,12.218,80.439,80.362,41.63441955]
[1646682865738,0.25,80.438,80.362,41.63441955]
[1646682865938,6.218,80.437,80.362,41.63441955]
[1646682866141,18.6677,80.43,80.362,41.63441955]
[1646682866343,6.469,80.429,80.362,41.63441955]
[1646682866539,6.0,80.428,80.36,14.43]
[1646682866739,0.25,80.427,80.36,14.43]
[1646682866940,0.25,80.427,80.353,79.0966]
[1646682866941,7.0,80.423,80.353,79.0966]
[1646682867143,18.6699,80.42,80.353,79.0966]
[1646682867441,62.2587,80.41,80.353,79.0966]
[1646682867639,12.47,80.409,80.33,57.42455396]
[1646682868241,6.47,80.409,80.33,57.42455396]
[1646682869343,0.25,80.409,80.33,57.42455396]
[1646682869544,6.25,80.427,80.33,14.43]
[1646682869742,7.0,80.421,80.33,14.43]
[1646682869942,12.47,80.42,80.33,14.43]
[1646682870145,18.6744,80.4,80.33,14.43]
[1646682870343,6.471,80.399,80.33,14.43]
[1646682871159,18.6765,80.39,80.316,1.48884017]
[1646682871351,6.471,80.389,80.316,1.48884017]
[1646682871649,6.471,80.389,80.313,41.160653]
[1646682871843,6.0,80.388,80.313,41.160653]
[1646682872044,6.472,80.387,80.313,41.160653]
[1646682872246,6.0,80.386,80.313,41.160653]
[1646682872444,0.25,80.385,80.313,41.160653]
[1646682872653,6.222,80.384,80.313,41.160653]
[1646682872844,6.25,80.383,80.313,41.160653]
[1646682873048,6.222,80.382,80.313,41.160653]
[1646682873244,0.25,80.381,80.313,41.160653]
[1646682873446,6.223,80.38,80.315,120.9]
[1646682873648,6.222,80.394,80.316,6.0]
[1646682873847,6.0,80.393,80.317,120.9]
[1646682874046,6.222,80.392,80.318,6.0]
[1646682874444,6.222,80.392,80.318,7.48884017]
[1646682874646,6.222,80.392,80.319,1.48884017]
[1646682874647,6.0,80.391,80.319,1.48884017]
[1646682874847,120.9,80.389,80.319,1.48884017]
[1646682875046,120.9,80.378,80.295,1.48884017]
[1646682875246,120.9,80.376,80.273,73.6636]
[1646682875448,120.9,80.374,80.28,14.43]
[1646682875649,18.6857,80.37,80.28,14.43]
[1646682875848,120.9,80.365,80.273,73.6636]
[1646682876047,120.9,80.363,80.273,73.6636]
[1646682876248,120.9,80.361,80.273,73.6636]
[1646682876445,120.9,80.359,80.273,73.6636]
[1646682876646,120.9,80.357,80.273,73.6636]
[1646682876845,120.9,80.355,80.273,73.6636]
[1646682877145,120.9,80.353,80.273,73.6636]
[1646682877345,7.0,80.338,80.273,73.6636]
[1646682877545,18.6908,80.33,80.273,73.6636]
[1646682877746,0.25,80.329,80.273,73.6636]
[1646682878750,18.6876,80.34,80.273,73.6636]
[1646682878947,6.476,80.339,80.273,73.6636]
[1646682879447,0.25,80.339,80.273,73.6636]
[1646682880248,0.25,80.339,80.274,2.07157664]
[1646682880451,0.25,80.339,80.274,1.48884017]
[1646682881749,6.226,80.338,80.274,1.48884017]
[1646682881948,0.25,80.337,80.274,1.48884017]
[1646682882149,6.226,80.336,80.274,1.48884017]
[1646682882349,0.25,80.335,80.274,1.48884017]
[1646682882549,0.25,80.337,80.276,0.89844138]
[1646682882948,0.25,80.337,80.278,0.89844138]
[1646682883148,0.25,80.337,80.278,1.14844138]
[1646682883349,0.25,80.337,80.28,0.89844138]
[1646682883549,0.25,80.378,80.281,120.9]
[1646682883750,6.224,80.377,80.283,120.9]
[1646682883952,0.25,80.376,80.283,120.9]
[1646682884154,18.6829,80.36,80.283,120.9]
[1646682884449,6.224,80.359,80.284,1.48884017]
[1646682884652,18.6829,80.36,80.284,1.48884017]
[1646682885454,6.224,80.359,80.284,1.48884017]
[1646682885654,0.25,80.358,80.284,1.48884017]
[1646682885852,0.25,80.358,80.28,14.43]
[1646682885853,18.6851,80.35,80.28,14.43]
[1646682886056,6.474,80.349,80.273,75.15244017]
[1646682886258,0.25,80.348,80.273,75.15244017]
[1646682886461,6.224,80.347,80.273,75.15244017]
[1646682886660,0.25,80.346,80.274,42.94113122]
[1646682886853,6.224,80.345,80.275,0.50565278]
[1646682887053,0.25,80.344,80.275,1.48884017]
[1646682887253,6.224,80.343,80.276,1.48884017]
[1646682887454,0.25,80.342,80.276,1.48884017]
[1646682887655,6.224,80.341,80.276,1.48884017]